[Event "17th Delhi GM Open 2019-B"]
[Site "Delhi"]
[Date "2019.01.09"]
[Round "3"]
[White "Smeeru, Thakur"]
[Black "Ragesh Sarma.M"]
[Result "0-1"]
[ECO "B40"]
[WhiteElo "1894"]
[BlackElo "1658"]
[Annotator "NA RC"]
[PlyCount "106"]
[EventDate "2019.01.09"]
[EventType "swiss"]
[EventCountry "IND"]
[SourceTitle "playchess.com"]
[Source "ChessBase"]
[SourceQuality "1"]
[TimeControl "3600+30"]

{[%evp 8,106,52,42,45,32767,32767,14,22,15,12,2,-4,32767,32767,-14,-23,32767,32767,32767,32767,32767,32767,32767,32767,-34,-29,32767,125,0,0,-50,-8,32767,32767,32767,32767,32767,32767,32767,32767,32767,32767,32767,32767,32767,32767,-85,-77,-90,-88,-75,-79,-100,-75,-150,-150,-143,-116,-132,-140,-127,-140,32767,32767,32767,32767,32767,32767,32767,32767,32767,32767,-362,-397,32767,32767,32767,-527,32767,32767,32767,-814,-943,32767,32767,32767,32767,-5954,-1684,-2248,-5057,-5072,32767,32767,-29942,32767,32767,32767,32767,-29986]} 1. e4 {[%emt 0:00:00]} c5 {[%emt 0:00:00]} 2. Nf3 {[%emt 0:00:00]} e6 {[%emt 0:00:00]} 3. g3 {[%emt 0:00:00]} a6 {[%emt 0:00:00] B40: Sicilian: 2...e6, Unusual lines} (3... Nc6 4. Bg2 Nf6 5. Qe2 Be7 6. O-O O-O 7. Rd1 e5 8. c3 Re8 9. Na3 Bf8 10. d3 d5 11. exd5 Nxd5 12. Ng5 h6 13. Ne4 f5 {1-0 (65) Artemiev,V (2706)-Morozevich,A (2656) Sochi 2018}) 4. Bg2 {[%emt 0:00:00]} b5 {[%emt 0:00:00]} 5. O-O {[%emt 0:00:00]} Bb7 {[%emt 0:00:00]} 6. Re1 {[%emt 0:00:00]} d6 {[%emt 0:00:00]} 7. d3 {[%emt 0:00:00] LiveBook: 7 Games} (7. d4 $16) 7... Nf6 {[%emt 0:00:00]} 8. Nbd2 {[%emt 0:00:00]} Be7 {[%emt 0:00:00]} 9. Nf1 {[%emt 0:00:00]} Qc7 {[%emt 0:00:00]} 10. h4 $146 {[%emt 0:00:00]} ({Predecessor:} 10. h3 O-O 11. c3 Nbd7 {0-1 (28) Pineda Arroyave,O-Amado,A Cali 2012}) 10... Nbd7 {[%emt 0:00:00]} 11. N3h2 {[%emt 0:00:00]} d5 {[%emt 0:00:00]} 12. Bf4 {[%emt 0:00:43]} e5 {[%emt 0:00:00]} 13. exd5 {[%emt 0:00:50]} exf4 {[%emt 0:00:00]} 14. d6 {[%emt 0:01:45]} Qxd6 {[%emt 0:00:00]} 15. Bxb7 {[%emt 0:00:46]} Ra7 {[%emt 0:00:00]} 16. Qf3 {[%emt 0:03:17]} fxg3 {[%emt 0:00:00]} 17. Nxg3 {[%emt 0:00:30]} Ne5 {[%emt 0:01:08]} (17... g6 $1 $11) 18. Qg2 {[%emt 0:00:01]} (18. Qf4 $16 Rxb7 19. Nf5 (19. Rxe5 g6 $11)) 18... g6 {[%emt 0:07:21]} 19. Ne4 {[%emt 0:04:46]} Nxe4 {[%emt 0:04:35]} 20. Qxe4 {[%emt 0:00:01]} O-O {[%emt 0:08:13]} 21. Qxe5 {[%emt 0:00:01]} Rxb7 {[%emt 0:01:40]} 22. Qxd6 {[%emt 0:00:56]} Bxd6 {[%emt 0:00:01]} 23. Nf3 {[%emt 0:00:25]} Re7 {[%emt 0:04:32]} 24. Kg2 {[%emt 0:00:01]} Rfe8 {[%emt 0:02:35]} 25. c3 {[%emt 0:00:01]} Kg7 {[%emt 0:02:01]} 26. Rxe7 {[%emt 0:02:36]} Rxe7 {[%emt 0:00:18]} 27. Re1 {[%emt 0:00:59]} Rxe1 {[%emt 0:02:12]} 28. Nxe1 {[%emt 0:00:00]} Kf6 {[%emt 0:01:15]} 29. Kf3 {[%emt 0:00:01]} Kf5 {[%emt 0:00:24]} 30. Ng2 {[%emt 0:01:14]} h5 {[%emt 0:01:55]} 31. d4 {[%emt 0:00:00]} (31. Ne3+ $142 Ke6 32. b3) 31... cxd4 {[%emt 0:01:02]} 32. cxd4 {[%emt 0:00:00]} f6 {[%emt 0:01:08]} 33. Ne3+ {[%emt 0:00:01]} Ke6 {[%emt 0:00:23]} 34. Ke4 {[%emt 0:00:00]} f5+ {[%emt 0:03:15]} 35. Kd3 {[%emt 0:00:00]} Be7 {[%emt 0:01:28]} 36. Ng2 {[%emt 0:01:07]} g5 {[%emt 0:00:00]} 37. Ke3 {[%emt 0:02:02]} Kd5 {[%emt 0:01:16]} 38. Kf3 {[%emt 0:00:00]} Kxd4 {[%emt 0:00:32]} 39. hxg5 {[%emt 0:00:50]} Bxg5 {[%emt 0:00:01]} 40. Ne1 {[%emt 0:00:31]} Bd2 {[%emt 0:01:57]} 41. Ng2 {[%emt 0:00:00]} Kd3 {[%emt 0:00:27]} 42. Nh4 {[%emt 0:00:00]} f4 {[%emt 0:00:58]} 43. Ng6 {[%emt 0:00:00]} Kc2 {[%emt 0:00:11]} 44. b3 {[%emt 0:00:00]} Kb2 {[%emt 0:01:04]} 45. Nxf4 {[%emt 0:00:01]} Kxa2 {[%emt 0:01:15]} 46. Nxh5 {[%emt 0:00:00]} Kxb3 {[%emt 0:00:05]} 47. Ke2 {[%emt 0:00:04]} Bh6 {[%emt 0:01:06]} 48. Nf6 {[%emt 0:00:01]} b4 {[%emt 0:00:48]} 49. Kd3 {[%emt 0:00:01]} Ka2 {[%emt 0:00:04]} 50. Ne4 {[%emt 0:00:01]} b3 {[%emt 0:00:20]} 51. Kc4 {[%emt 0:02:09]} b2 {[%emt 0:01:51]} 52. Nc3+ {[%emt 0:00:01]} Ka1 {[%emt 0:00:01]} 53. Kd3 {[%emt 0:00:01]} Bg7 {[%emt 0:00:09]} 0-1

[Event "17th Delhi GM Open 2019-B"]
[Site "Delhi"]
[Date "2019.01.09"]
[Round "3"]
[White "Nayak, Sanjeeban"]
[Black "Mokashi Rohit"]
[Result "1-0"]
[ECO "A06"]
[WhiteElo "1844"]
[BlackElo "1641"]
[Annotator "NA RC"]
[PlyCount "87"]
[EventDate "2019.01.09"]
[EventType "swiss"]
[EventCountry "IND"]
[SourceTitle "playchess.com"]
[Source "ChessBase"]
[SourceQuality "1"]
[TimeControl "3600+30"]

{[%evp 8,76,-3,8,27,-10,12,-18,32767,-16,32767,45,48,23,32767,32767,32767,32767,32767,32767,36,26,27,35,89,21,21,0,14,16,32767,32767,32767,32767,32767,32767,32767,32767,0,-50,57,32767,37,41,32767,25,32767,32767,32767,32767,32767,32767,249,32767,241,243,262,258,260,275,275,264,320,334,343,354,407,32767,410,441,529]} 1. Nf3 {[%emt 0:55:54]} d5 {[%emt 1:00:20]} 2. b3 {[%emt 0:04:56]} Bf5 {[%emt 0:00:31]} 3. Bb2 {[%emt 0:00:30]} e6 {[%emt 0:00:30]} 4. e3 {[%emt 0:00:28]} Nf6 {[%emt 0:00:00]} 5. Be2 {[%emt 0:00:00]} Nbd7 {[%emt 0:00:00] LiveBook: 17 Games} 6. d3 {[%emt 0:00:33] A06: Réti Opening:1 Nf3 d5} c6 {[%emt 0:00:35]} 7. Nbd2 {[%emt 0:00:23]} Qc7 {[%emt 0:01:04]} (7... h6 8. O-O a5 9. a3 Bh7 {½-½ (9) Duran Vega,S (2360)-Borges Matos,J (2436) Havana 2018}) 8. Rc1 $146 {[%emt 0:00:00]} ({Predecessor:} 8. O-O h6 9. Nh4 Bh7 10. f4 Bd6 11. Nhf3 {½-½ (54) Smalskys,V-Samodelkin,A (1621) Kaunas 2015}) 8... e5 {[%emt 0:00:00]} 9. c4 {[%emt 0:00:11]} dxc4 {[%emt 0:00:00]} 10. Rxc4 {[%emt 0:00:00]} Bd6 {[%emt 0:00:00]} 11. O-O {[%emt 0:00:54]} Nb6 {[%emt 0:01:10]} 12. Rc1 {[%emt 0:01:57]} Rd8 {[%emt 0:00:00]} 13. e4 {[%emt 0:00:19]} Bg6 {[%emt 0:00:00]} 14. Qc2 {[%emt 0:00:00]} O-O {[%emt 0:00:00]} 15. a4 {[%emt 0:00:00]} Rfe8 {[%emt 0:01:17] [#]} 16. Rfd1 {[%emt 0:00:00]} ({White should try} 16. a5 $1 $16 {[%cal Ra5b6]} Nbd7 {[#]} 17. a6 $1 {[%mdl 512]}) 16... Bb4 {[%emt 0:01:05]} 17. Nf1 {[%emt 0:00:00]} a5 {[%emt 0:00:00]} 18. Ne3 {[%emt 0:00:00]} Nfd7 {[%emt 0:00:00]} 19. Bc3 {[%emt 0:02:22]} Qd6 {[%emt 0:00:11]} 20. Nd2 {[%emt 0:00:00]} f6 {[%emt 0:00:00]} 21. Ndc4 {[%emt 0:01:10]} Nxc4 {[%emt 0:03:36]} 22. Nxc4 {[%emt 0:00:00]} Qc5 {[%emt 0:00:00]} 23. Bxb4 {[%emt 0:00:00]} Qxb4 {[%emt 0:00:00]} (23... axb4 $15 24. Bg4 Bf7) 24. Qc3 {[%emt 0:01:34]} Nf8 {[%emt 0:01:07]} 25. Nxa5 {[%emt 0:00:34]} Qe7 {[%emt 0:00:00]} 26. Bg4 {[%emt 0:00:00]} Rd4 {[%emt 0:00:00]} 27. Nc4 {[%emt 0:01:05]} Bf7 {[%emt 0:01:21]} 28. Ne3 {[%emt 0:00:55]} Qa3 {[%emt 0:00:00]} 29. Nc2 {[%emt 0:00:00]} Qxb3 {[%emt 0:00:59]} 30. Nxd4 {[%emt 0:01:03]} Qxc3 {[%emt 0:00:00]} 31. Rxc3 {[%emt 0:00:41]} exd4 {[%emt 0:01:43]} 32. Ra3 {[%emt 0:00:17]} Ra8 {[%emt 0:00:02]} 33. Rb1 {[%emt 0:00:25]} b5 {[%emt 0:00:14]} 34. Rb4 {[%emt 0:00:00]} Be8 {[%emt 0:00:05]} 35. Rxd4 {[%emt 0:00:31]} c5 {[%emt 0:00:44]} 36. Rd5 {[%emt 0:01:01]} b4 {[%emt 0:01:15]} 37. Ra1 {[%emt 0:00:28]} b3 {[%emt 0:00:00]} 38. Rxc5 {[%emt 0:00:00]} Rxa4 $18 {[%emt 0:00:00]} 39. Rxa4 {[%emt 0:00:53]} Bxa4 {[%emt 0:01:39]} 40. Rc8 {[%emt 0:00:44]} Kf7 {[%emt 0:00:00]} 41. Rb8 {[%emt 0:00:28]} Ng6 {[%emt 0:00:12]} 42. Bh5 {[%emt 0:00:14]} Ke6 {[%emt 0:01:00]} 43. Bxg6 {[%emt 0:00:40]} hxg6 {[%emt 0:00:50]} 44. Rb4 {[%emt 0:00:40]} 1-0

[Event "17th Delhi GM Open 2019-B"]
[Site "Delhi"]
[Date "2019.01.09"]
[Round "3"]
[White "Swapnaneel Dowerah"]
[Black "Koustav Chakraborty"]
[Result "0-1"]
[ECO "B23"]
[WhiteElo "1666"]
[BlackElo "1898"]
[Annotator "NA RC"]
[PlyCount "58"]
[EventDate "2019.01.09"]
[EventType "swiss"]
[EventCountry "IND"]
[SourceTitle "playchess.com"]
[Source "ChessBase"]
[SourceQuality "1"]
[TimeControl "3600+30"]

1. e4 {[%emt 0:00:00]} c5 {[%emt 0:00:00]} 2. Nc3 {[%emt 0:00:00]} Nc6 {[%emt 0:00:00]} 3. f4 {[%emt 0:00:00]} g6 {[%emt 0:00:00]} 4. Nf3 {[%emt 0:00:00]} Bg7 {[%emt 0:00:00]} 5. Bc4 {[%emt 0:00:00]} e6 {[%emt 0:00:00]} 6. O-O {[%emt 0:00:00]} Nge7 {[%emt 0:00:00]} 7. d3 {[%emt 0:00:00]} O-O {[%emt 0:00:00]} 8. Qe1 {[%emt 0:00:00]} d5 {[%emt 0:00:00]} 9. Bb3 $1 {[%emt 0:00:00]} Nd4 {[%emt 0:00:00]} 10. Nxd4 $1 {[%emt 0:00:00] LiveBook: 49 Games} cxd4 {[%emt 0:00:00]} 11. Ne2 {[%emt 0:00:00]} dxe4 {[%emt 0:00:00]} 12. dxe4 {[%emt 0:00:00]} a5 {[%emt 0:00:00]} 13. a3 {[%emt 0:00:00]} d3 {[%emt 0:00:00]} 14. Ng3 {[%emt 0:02:40]} (14. Nc3 $11) 14... a4 $17 {[%emt 0:00:00]} 15. Ba2 {[%emt 0:05:46]} dxc2 {[%emt 0:00:00]} 16. Qd2 {[%emt 0:03:08]} Qxd2 {[%emt 0:00:00]} 17. Bxd2 {[%emt 0:00:09]} Bxb2 {[%emt 0:00:00]} 18. Rae1 {[%emt 0:00:54]} Bxa3 {[%emt 0:00:00]} 19. Re2 {[%emt 0:01:40]} Bd7 {[%emt 0:00:00]} 20. Bc1 {[%emt 0:00:09]} Bc5+ {[%emt 0:00:00]} 21. Be3 {[%emt 0:00:40]} Bxe3+ {[%emt 0:00:00]} 22. Rxe3 {[%emt 0:00:00]} Rfc8 {[%emt 0:00:00]} 23. Rc1 {[%emt 0:00:24]} b5 {[%emt 0:00:00]} 24. Ne2 {[%emt 0:00:58]} b4 {[%emt 0:00:00]} 25. Nd4 {[%emt 0:00:32]} b3 {[%emt 0:00:00]} 26. Nxb3 {[%emt 0:00:20]} axb3 {[%emt 0:00:00]} 27. Bxb3 {[%emt 0:00:01]} Ba4 {[%emt 0:00:00]} 28. Bxa4 {[%emt 0:01:13]} Rxa4 {[%emt 0:00:00]} 29. Rd3 {[%emt 0:00:20]} Rb4 {[%emt 0:00:00]} 0-1

[Event "17th Delhi GM Open 2019-B"]
[Site "Delhi"]
[Date "2019.01.09"]
[Round "3"]
[White "Sathish Chandra, G."]
[Black "Farzad, Khusraw"]
[Result "1/2-1/2"]
[ECO "B22"]
[WhiteElo "1665"]
[BlackElo "1877"]
[Annotator "NA RC"]
[PlyCount "87"]
[EventDate "2019.01.09"]
[EventType "swiss"]
[EventCountry "IND"]
[SourceTitle "playchess.com"]
[Source "ChessBase"]
[SourceQuality "1"]
[TimeControl "3600+30"]

{[%evp 8,86,81,72,79,32767,32767,32767,-2,32767,32767,32767,32767,-12,1,-8,8,0,0,6,10,0,32,16,14,-4,32767,32767,32767,32767,32767,32767,32767,32767,32767,32767,32767,32767,32767,32767,32767,32767,32767,32767,-40,-50,-26,-181,-177,-192,-20,-27,-20,-4,-6,-15,-10,-70,-80,-80,32767,-52,32767,32767,32767,32767,32767,32767,32767,32767,32767,32767,32767,32767,32767,32767,32767,0,0,-35,0]} 1. e4 {[%emt 0:00:00]} c5 {[%emt 0:00:00]} 2. c3 {[%emt 0:00:00]} d6 {[%emt 0:00:00]} 3. d4 {[%emt 0:00:00]} cxd4 {[%emt 0:00:00]} 4. cxd4 {[%emt 0:00:00]} Nf6 {[%emt 0:00:00]} 5. Nc3 {[%emt 0:00:00]} e6 {[%emt 0:00:00] LiveBook: 3 Games} 6. Bg5 {[%emt 0:00:00] B22: Sicilian: 2 c3} (6. Nf3 Be7 7. Bd3 O-O 8. Qe2 a6 9. e5 dxe5 10. dxe5 Nd5 11. O-O Nc6 12. Qe4 g6 13. Bh6 Re8 14. Rad1 Nxc3 15. bxc3 Qa5 16. h4 Qxc3 17. Qf4 Bf8 18. Bxf8 Rxf8 19. Qh6 f6 20. h5 Rf7 21. hxg6 hxg6 22. Bxg6 Rg7 23. Rd3 Qb2 24. Rfd1 {1-0 (24) Kislinsky,A (2513)-Lewicki,M (2404) Katowice 2017}) 6... Be7 {[%emt 0:00:00]} 7. e5 {[%emt 0:00:00]} Nd5 {[%emt 0:00:00]} 8. Bxe7 {[%emt 0:00:00]} Qxe7 {[%emt 0:00:00]} 9. Bb5+ {[%emt 0:11:22]} Bd7 {[%emt 0:00:00]} 10. Bxd7+ $146 {[%emt 0:10:53]} ({Predecessor:} 10. Qg4 O-O 11. Nge2 dxe5 12. dxe5 Nxc3 13. Nxc3 Bxb5 14. Nxb5 {0-1 (57) Stanojevic,I (1874)-Savic,M (1763) Subotica 2014}) 10... Qxd7 {[%emt 0:00:00]} 11. Qg4 {[%emt 0:00:53]} f5 {[%emt 0:00:00]} 12. Qh5+ {[%emt 0:00:34]} g6 {[%emt 0:00:00]} 13. Nxd5 {[%emt 0:00:43]} exd5 {[%emt 0:00:00]} (13... gxh5 $5 14. Nf6+ $8 {[%mdl 64] Double Attack} Ke7 15. Nxd7 Nxd7 $11) 14. Qd1 {[%emt 0:05:49]} dxe5 {[%emt 0:00:00]} 15. dxe5 {[%emt 0:00:00]} Qb5 {[%emt 0:00:00]} 16. Qd2 {[%emt 0:00:00]} Nc6 {[%emt 0:00:00]} 17. f4 {[%emt 0:00:00]} Nb4 {[%emt 0:00:00]} 18. Rd1 {[%emt 0:00:00]} Rc8 {[%emt 0:02:50]} 19. a3 {[%emt 0:00:00]} Nc2+ {[%emt 0:03:04]} 20. Kf2 {[%emt 0:00:00]} Qxb2 {[%emt 0:00:00]} 21. Ne2 {[%emt 0:02:19]} Qb6+ {[%emt 0:07:51]} 22. Kg3 {[%emt 0:00:00]} Qb3+ {[%emt 0:00:00]} 23. Qd3 {[%emt 0:00:41]} Qxa3 {[%emt 0:00:01]} 24. Qxa3 {[%emt 0:00:39]} Nxa3 {[%emt 0:00:00]} 25. Rxd5 {[%emt 0:00:00]} Nc4 {[%emt 0:01:23]} 26. Nd4 {[%emt 0:00:57]} Ke7 {[%emt 0:02:46]} 27. Nb5 $2 {[%emt 0:00:26] [#]} (27. Rb1 $11 b6 28. Kf2) 27... a6 $1 {[%emt 0:00:09]} 28. Nd6 {[%emt 0:00:25] [#]} Nxd6 $2 {[%emt 0:00:06]} (28... Rcd8 $1 $19 29. Re1 {[#]} Rhe8 $1 {[%mdl 512]}) 29. Rxd6 {[%emt 0:00:40]} Rhd8 {[%emt 0:00:00]} 30. Rb6 $1 {[%emt 0:00:00]} Rc7 {[%emt 0:03:39]} 31. Rhb1 {[%emt 0:00:16]} Rdd7 {[%emt 0:00:00]} 32. e6 {[%emt 0:00:33]} (32. h3 $11) 32... Rd3+ {[%emt 0:01:39]} 33. Kh4 {[%emt 0:00:11]} h6 {[%emt 0:00:31]} 34. Rxb7 {[%emt 0:01:19]} Rxb7 {[%emt 0:00:00]} 35. Rxb7+ {[%emt 0:00:01]} Kxe6 {[%emt 0:00:38]} 36. Rh7 {[%emt 0:00:37]} Rd2 {[%emt 0:00:02]} 37. Kg3 {[%emt 0:01:05]} h5 {[%emt 0:00:00]} 38. Rg7 {[%emt 0:00:28]} Kf6 {[%emt 0:01:07]} 39. Ra7 {[%emt 0:00:11]} Ra2 {[%emt 0:00:26]} 40. h3 {[%emt 0:00:18]} a5 {[%emt 0:01:57]} 41. Ra6+ {[%emt 0:00:56]} Kg7 {[%emt 0:00:03]} 42. Ra7+ {[%emt 0:00:33]} Kh6 {[%emt 0:00:00]} 43. Kh4 {[%emt 0:00:36]} Rxg2 $11 {[%emt 0:01:41]} 44. Rh7+ {[%emt 0:00:28]} 1/2-1/2

[Event "17th Delhi GM Open 2019-B"]
[Site "Delhi"]
[Date "2019.01.09"]
[Round "3"]
[White "Konjengbam Poireikhomba Meete"]
[Black "Heikrujam Jacky Singh"]
[Result "1/2-1/2"]
[ECO "B18"]
[WhiteElo "1663"]
[BlackElo "1870"]
[Annotator "NA RC"]
[PlyCount "52"]
[EventDate "2019.01.09"]
[EventType "swiss"]
[EventCountry "IND"]
[SourceTitle "playchess.com"]
[Source "ChessBase"]
[SourceQuality "1"]
[TimeControl "3600+30"]

{[%evp 10,52,25,15,32767,32767,43,32767,39,25,42,-8,39,-13,32767,16,27,32767,32767,32767,32767,32767,32767,32767,32767,32767,32767,32767,32767,32767,32767,32767,32767,11,9,-68,14,12,23,13,14,0,0,0,27]} 1. e4 {[%emt 0:00:00]} c6 {[%emt 0:00:00]} 2. d4 {[%emt 0:00:00]} d5 {[%emt 0:00:00]} 3. Nd2 {[%emt 0:00:00]} dxe4 {[%emt 0:00:00]} 4. Nxe4 {[%emt 0:00:00]} Bf5 {[%emt 0:00:00]} 5. Ng3 {[%emt 0:00:00]} Bg6 $1 {[%emt 0:00:00]} 6. Nf3 {[%emt 0:00:00]} Nd7 {[%emt 0:00:00]} 7. Bd3 {[%emt 0:00:00]} Ngf6 {[%emt 0:00:00]} 8. O-O {[%emt 0:00:00]} e6 {[%emt 0:00:00] LiveBook: 257 Games} 9. a3 {[%emt 0:00:00] B18: Classical Caro-Kann: 4...Bf5 sidelines} (9. b3 a5 10. a4 Bd6 11. Bb2 Qc7 12. Re1 O-O 13. Bxg6 hxg6 14. Ne5 b5 15. Qf3 bxa4 16. Rxa4 Nb6 17. Raa1 {½-½ (31) Paehtz,E (2513)-Karjakin,S (2760) Douglas 2018}) 9... Be7 $146 {[%emt 0:00:00]} ({Predecessor:} 9... b5 10. Ne5 Nxe5 11. dxe5 Bxd3 12. cxd3 Nd5 13. d4 Be7 14. Qg4 g6 15. Bh6 Bf8 16. Bxf8 h5 {½-½ (39) Chernysh,A-Grybas,G (1992) Vilnius 2013}) 10. Qe2 {[%emt 0:00:00]} O-O {[%emt 0:00:00]} 11. Bd2 {[%emt 0:00:00]} Rc8 {[%emt 0:00:00]} 12. b4 {[%emt 0:00:00]} Re8 {[%emt 0:00:00]} 13. Rfd1 {[%emt 0:00:00]} Qc7 {[%emt 0:00:00]} 14. c4 {[%emt 0:00:00]} Bd6 {[%emt 0:00:00]} 15. Bxg6 {[%emt 0:00:00]} hxg6 {[%emt 0:00:00]} 16. c5 {[%emt 0:00:00]} Bf4 {[%emt 0:00:00]} 17. Ne4 {[%emt 0:00:00]} Bxd2 {[%emt 0:00:00]} 18. Nfxd2 {[%emt 0:00:00]} Rcd8 {[%emt 0:00:00]} 19. Nd6 {[%emt 0:00:00]} Rf8 {[%emt 0:00:00]} 20. f4 {[%emt 0:00:00]} Ne8 {[%emt 0:00:00]} 21. N2e4 {[%emt 0:00:00]} Ndf6 {[%emt 0:00:00]} 22. Nxf6+ {[%emt 0:00:00]} (22. Nxe8 $11 Rfxe8 23. Nd6) 22... Nxf6 {[%emt 0:00:00]} ({Black should try} 22... gxf6 $15 23. Nxe8 Rfxe8) 23. g3 {[%emt 0:00:00]} Ne8 {[%emt 0:00:00]} 24. Nc4 {[%emt 0:00:00]} Nf6 {[%emt 0:00:00]} 25. Nd6 {[%emt 0:00:00]} Ne8 {[%emt 0:00:00]} 26. Nc4 $11 {[%emt 0:00:00]} Nf6 {[%emt 0:00:00]} 1/2-1/2

[Event "17th Delhi GM Open 2019-B"]
[Site "Delhi"]
[Date "2019.01.09"]
[Round "3"]
[White "Pardeep Singh Negi"]
[Black "Dhanush Ragav N S"]
[Result "0-1"]
[ECO "C83"]
[WhiteElo "1663"]
[BlackElo "1854"]
[Annotator "NA RC"]
[PlyCount "34"]
[EventDate "2019.01.09"]
[EventType "swiss"]
[EventCountry "IND"]
[SourceTitle "playchess.com"]
[Source "ChessBase"]
[SourceQuality "1"]
[TimeControl "3600+30"]

1. e4 e5 2. Nf3 Nc6 3. Bb5 a6 4. Ba4 Nf6 5. O-O Nxe4 6. d4 b5 7. Bb3 d5 8. dxe5 Be6 9. Nbd2 Be7 10. c3 O-O 11. Bc2 f5 12. Nb3 Qd7 13. Nbd4 Nxd4 14. cxd4 Rad8 15. b3 c5 16. dxc5 Bxc5 17. Nd4 Nc3 0-1

[Event "17th Delhi GM Open 2019-B"]
[Site "Delhi"]
[Date "2019.01.09"]
[Round "3"]
[White "Adireddy Tarun"]
[Black "Deshpande Abhishek"]
[Result "0-1"]
[ECO "D08"]
[WhiteElo "1661"]
[BlackElo "1845"]
[Annotator "NA RC"]
[PlyCount "94"]
[EventDate "2019.01.09"]
[EventType "swiss"]
[EventCountry "IND"]
[SourceTitle "playchess.com"]
[Source "ChessBase"]
[SourceQuality "1"]
[TimeControl "3600+30"]

1. d4 {[%emt 0:00:00]} d5 {[%emt 0:00:00]} 2. c4 {[%emt 0:00:00]} e5 {[%emt 0:00:00]} 3. dxe5 {[%emt 0:00:00]} d4 {[%emt 0:00:00]} 4. Nf3 {[%emt 0:00:00]} Nc6 {[%emt 0:00:00]} 5. Bf4 {[%emt 0:00:00] LiveBook: 8 Games} Nge7 {[%emt 0:00:00]} 6. h3 {[%emt 0:00:00] D08: Albin Counter Gambit} (6. Nbd2 Ng6 7. Bg3 a5 8. a3 a4 9. Qc2 Bc5 10. Ne4 Ba7 11. O-O-O Qe7 12. e3 dxe3 13. Nc3 Be6 {½-½ (77) Mihalincic,T (2255)-Plenca,J (2410) Zagreb 2017}) 6... Ng6 {[%emt 0:00:00]} 7. e3 $146 {[%emt 0:00:00]} ({Predecessor:} 7. Bh2 a5 8. Nbd2 Be7 9. g3 O-O 10. Bg2 Ngxe5 11. O-O Re8 12. Nxe5 Nxe5 13. Qb3 Ra6 {0-1 (23) Sawmynaden,R (1694)-Van Rensburg,R (2178) Port Louis 2016}) 7... Bb4+ {[%emt 0:00:00]} 8. Nbd2 {[%emt 0:00:00]} O-O {[%emt 0:00:00]} 9. a3 {[%emt 0:00:00]} dxe3 {[%emt 0:00:00]} 10. fxe3 {[%emt 0:00:00]} Bxd2+ {[%emt 0:00:00]} 11. Qxd2 {[%emt 0:00:00]} Qxd2+ {[%emt 0:00:00]} 12. Kxd2 {[%emt 0:00:00]} Re8 {[%emt 0:00:00]} 13. e6 {[%emt 0:00:02]} Bxe6 {[%emt 0:00:13]} 14. Bxc7 {[%emt 0:00:12]} Rac8 {[%emt 0:00:25]} 15. Bf4 {[%emt 0:10:16]} ({White should play} 15. Bg3 $15) 15... Na5 {[%emt 0:00:36]} 16. Bd3 {[%emt 0:08:14]} (16. Ke1 $17) 16... Nb3+ {[%emt 0:02:28]} ({But not} 16... Nxc4+ 17. Bxc4 Bxc4 18. g3 $17) 17. Kc3 {[%emt 0:00:00]} Nxa1 {[%emt 0:00:13]} 18. Rxa1 {[%emt 0:00:01]} Bxc4 {[%emt 0:06:15]} 19. Bxc4 {[%emt 0:00:04]} b5 {[%emt 0:00:08]} 20. b3 {[%emt 0:01:14]} bxc4 {[%emt 0:01:03]} 21. bxc4 {[%emt 0:00:00]} Nxf4 {[%emt 0:00:17]} 22. exf4 {[%emt 0:00:01]} Re4 {[%emt 0:00:29]} 23. Nd4 {[%emt 0:00:31]} Rxf4 {[%emt 0:00:36]} 24. Re1 {[%emt 0:00:02]} Kf8 {[%emt 0:00:36]} 25. g3 {[%emt 0:00:24]} Rf2 {[%emt 0:01:19]} 26. Re3 {[%emt 0:00:33]} h5 {[%emt 0:02:45]} 27. Nb5 {[%emt 0:00:00]} a6 {[%emt 0:00:00]} 28. Nd6 {[%emt 0:00:14]} Rd8 {[%emt 0:00:51]} 29. c5 {[%emt 0:01:01]} Rf1 {[%emt 0:00:55]} 30. Kb4 {[%emt 0:02:49]} Rd1 {[%emt 0:02:33]} 31. Rc3 {[%emt 0:02:15] [#]} g5 {[%emt 0:05:39]} ({Black should play} 31... Rb8+ $1 $19 32. Ka5 Ke7) 32. Nb7 $2 {[%emt 0:01:00]} (32. Rf3 $15) 32... Rb1+ $19 {[%emt 0:00:40]} 33. Rb3 {[%emt 0:00:09]} Rxb3+ {[%emt 0:00:00]} 34. Kxb3 {[%emt 0:00:13]} Rb8 {[%emt 0:00:30]} 35. c6 {[%emt 0:00:07]} Rc8 {[%emt 0:00:22]} 36. Na5 {[%emt 0:00:10]} f5 {[%emt 0:01:53]} 37. Kc4 {[%emt 0:00:01]} f4 {[%emt 0:00:30]} 38. gxf4 {[%emt 0:00:15]} g4 {[%emt 0:01:06]} 39. hxg4 {[%emt 0:00:07]} h4 {[%emt 0:00:21]} 40. Kc5 {[%emt 0:00:00]} h3 {[%emt 0:00:11]} 41. Nb7 {[%emt 0:00:01]} h2 {[%emt 0:00:14]} 42. Nd6 {[%emt 0:00:02]} Ra8 {[%emt 0:00:39]} 43. c7 {[%emt 0:00:01]} h1=Q {[%emt 0:00:10]} 44. c8=Q+ {[%emt 0:00:09]} Rxc8+ {[%emt 0:00:12]} 45. Nxc8 {[%emt 0:00:00]} Qc1+ {[%emt 0:00:11]} 46. Kb6 {[%emt 0:00:17]} Qxc8 47. g5 {[%emt 0:00:23]} Ke7 {[%emt 0:00:47]} 0-1